fUST/lending_fUST_20250701
["ID","MTS","AMOUNT","RATE_DAILY","PERIOD"]
[368750468,1751345442181,-240.46300817,0.00018158,2]
[368750469,1751345442192,-460.0,0.00018158,2]
[368750470,1751345442202,-460.0,0.00018158,2]
[368750471,1751345442212,-460.0,0.00018158,2]
[368750472,1751345442224,-460.0,0.00018158,2]
[368750473,1751345442235,-460.0,0.00018158,2]
[368750474,1751345442245,-460.0,0.00018158,2]
[368750475,1751345442255,-460.0,0.00018158,2]
[368750476,1751345442265,-460.0,0.00018158,2]
[368750477,1751345442274,-485.44575162,0.00018158,2]
[368750478,1751345442285,-460.0,0.00018158,2]
[368750479,1751345442295,-460.0,0.00018158,2]
[368750480,1751345442304,-460.0,0.00018158,2]
[368750481,1751345442314,-460.0,0.00018158,2]
[368750482,1751345442324,-465.49882219,0.00018158,2]
[368750483,1751345442334,-358.92,0.00018158,2]
[368750484,1751345442344,-296.21072939,0.00018158,2]
[368750485,1751345442354,-460.0,0.00018158,2]
[368750486,1751345442364,-460.0,0.00018158,2]
[368750487,1751345442374,-460.0,0.00018158,2]
[368750488,1751345442383,-460.0,0.00018158,2]
[368750489,1751345442394,-460.0,0.00018158,2]
[368750490,1751345442403,-460.0,0.00018158,2]
[368750491,1751345442415,-460.0,0.00018158,2]
[368750492,1751345442426,-462.34268705,0.00018158,2]
[368750493,1751345442437,-257.62276215,0.00018158,2]
[368750494,1751345442447,-460.0,0.00018158,2]
[368750495,1751345442456,-477.28,0.00018158,2]
[368750496,1751345442467,-460.0,0.00018158,2]
[368750497,1751345442477,-460.0,0.00018158,2]
[368750498,1751345442487,-460.0,0.00018158,2]
[368750499,1751345442497,-460.0,0.00018158,2]
[368750500,1751345442508,-1133.51,0.00018158,2]
[368750501,1751345442517,-460.0,0.00018158,2]
[368750502,1751345442527,-374.88800127,0.00018158,2]
[368750503,1751345442536,-460.0,0.00018158,2]
[368750504,1751345442546,-460.0,0.00018158,2]
[368750505,1751345442556,-460.0,0.00018158,2]
[368750506,1751345442566,-460.0,0.00018158,2]
[368750507,1751345442577,-500.0,0.00018158,2]
[368750508,1751345442588,-460.0,0.00018158,2]
[368750509,1751345442599,-460.0,0.00018158,2]
[368750510,1751345442608,-460.0,0.00018158,2]
[368750511,1751345442617,-460.0,0.00018158,2]
[368750512,1751345442627,-460.0,0.00018158,2]
[368750513,1751345442637,-460.89346953,0.00018158,2]
[368750514,1751345442647,-1148.85,0.00018158,2]
[368750515,1751345442657,-500.0,0.00018158,2]
[368750516,1751345442666,-460.0,0.00018158,2]
[368750517,1751345442677,-460.0,0.00018158,2]
[368750518,1751345442686,-1958.59,0.00018158,2]
[368750519,1751345442696,-460.0,0.00018158,2]
[368750520,1751345442705,-460.0,0.00018158,2]
[368750521,1751345442715,-460.0,0.00018158,2]
[368750522,1751345442725,-990.21,0.00018158,2]
[368750523,1751345442735,-460.0,0.00018158,2]
[368750524,1751345442745,-460.0,0.00018158,2]
[368750525,1751345442755,-460.0,0.00018158,2]
[368750526,1751345442765,-500.0,0.00018159,2]
[368750527,1751345442775,-500.0,0.00018159,2]
[368750528,1751345442785,-460.0,0.0001816,2]
[368750529,1751345442795,-407.88678831,0.0001816,2]
[368750530,1751345442805,-461.64994098,0.0001816,2]
[368750531,1751345442815,-460.0,0.0001816,2]
[368750532,1751345442825,-460.0,0.0001816,2]
[368750533,1751345442835,-460.56791805,0.0001816,2]
[368750534,1751345442844,-461.16325234,0.0001816,2]
[368750535,1751345442854,-460.33032254,0.0001816,2]
[368750536,1751345442863,-462.20339375,0.0001816,2]
[368750537,1751345442873,-460.0,0.0001816,2]
[368750538,1751345442883,-460.0,0.0001816,2]
[368750539,1751345442893,-507.65,0.0001816,2]
[368750540,1751345442903,-460.0,0.0001816,2]
[368750541,1751345442913,-460.0,0.0001816,2]
[368750542,1751345442922,-460.0,0.0001816,2]
[368750543,1751345442933,-460.0,0.0001816,2]
[368750544,1751345442942,-460.0,0.0001816,2]
[368750545,1751345442952,-518.96,0.0001816,2]
[368750546,1751345442961,-463.37303558,0.0001816,2]
[368750547,1751345442971,-460.0,0.0001816,2]
[368750548,1751345442980,-269.76,0.0001816,2]
[368750549,1751345442990,-460.0,0.0001816,2]
[368750550,1751345443000,-460.0,0.0001816,2]
[368750551,1751345443009,-407.25254515,0.0001816,2]
[368750552,1751345443018,-460.0,0.0001816,2]
[368750553,1751345443028,-454.65,0.0001816,2]
[368750554,1751345443037,-460.0,0.0001816,2]
[368750555,1751345443047,-500.0,0.00018161,2]
[368750556,1751345443057,-500.0,0.00018161,2]
[368750557,1751345443067,-460.0,0.00018162,2]
[368750558,1751345443076,-460.0,0.00018162,2]
[368750559,1751345443086,-460.0,0.00018162,2]
[368750560,1751345443095,-460.0,0.00018162,2]
[368750561,1751345443104,-460.0,0.00018162,2]
[368750562,1751345443114,-460.0,0.00018162,2]
[368750563,1751345443124,-460.0,0.00018162,2]
[368750564,1751345443133,-473.57240175,0.00018162,2]
[368750565,1751345443143,-460.0,0.00018162,2]
[368750566,1751345443153,-460.0,0.00018162,2]
[368750567,1751345443162,-460.0,0.00018162,2]
[368750568,1751345443172,-460.0,0.00018162,2]
[368750569,1751345443182,-460.0,0.00018162,2]
[368750570,1751345443191,-460.0,0.00018162,2]
[368750571,1751345443201,-460.0,0.00018162,2]
[368750572,1751345443210,-460.0,0.00018162,2]
[368750573,1751345443220,-460.0,0.00018162,2]
[368750574,1751345443230,-460.0,0.00018162,2]
[368750575,1751345443240,-606.07191659,0.00018162,2]
[368750576,1751345443249,-460.0,0.00018162,2]
[368750577,1751345443259,-460.0,0.00018162,2]
[368750578,1751345443269,-460.0,0.00018162,2]
[368750579,1751345443278,-460.0,0.00018162,2]
[368750580,1751345443288,-460.0,0.00018162,2]
[368750581,1751345443297,-460.0,0.00018162,2]
[368750582,1751345443307,-460.0,0.00018162,2]
[368750583,1751345443316,-460.0,0.00018162,2]
[368750584,1751345443325,-460.0,0.00018162,2]
[368750585,1751345443341,-460.0,0.00018162,2]
[368750586,1751345443350,-460.0,0.00018331,2]
[368750587,1751345443360,-460.0,0.00018331,2]
[368750588,1751345443370,-460.0,0.00018331,2]
[368750589,1751345443380,-460.0,0.00018332,2]
[368750590,1751345443389,-460.0,0.00018332,2]
[368750591,1751345443398,-466.40012559,0.00018332,2]
[368750592,1751345443408,-460.0,0.00018332,2]
[368750593,1751345443418,-460.0,0.00018332,2]
[368750594,1751345443427,-518.68,0.00018332,2]
[368750595,1751345443437,-1498.38,0.00018332,2]
[368750596,1751345443446,-1143.47,0.00018332,2]
[368750597,1751345443456,-460.0,0.00018332,2]
[368750598,1751345443466,-460.0,0.00018332,2]
[368750599,1751345443476,-460.0,0.00018332,2]
[368750600,1751345443486,-378.57872942,0.00018332,2]
[368750601,1751345443497,-460.0,0.00018332,2]
[368750602,1751345443508,-570.15798033,0.00018332,2]
[368750603,1751345443517,-460.0,0.00018332,2]
[368750604,1751345443526,-460.0,0.00018332,2]
[368750605,1751345443537,-460.0,0.00018332,2]
[368750606,1751345443547,-460.0,0.00018332,2]
[368750607,1751345443556,-463.44615975,0.00018332,2]
[368750608,1751345443566,-1268.92,0.00018332,2]
[368750609,1751345443577,-463.58436529,0.00018332,2]
[368750610,1751345443587,-1475.83,0.00018332,2]
[368750611,1751345443597,-1680.79,0.00018332,2]
[368750612,1751345443606,-460.0,0.00018332,2]
[368750613,1751345443615,-460.0,0.00018332,2]
[368750614,1751345443625,-324.06,0.00018332,2]
[368750615,1751345443635,-460.0,0.00018332,2]
[368750616,1751345443647,-460.0,0.00018332,2]
[368750617,1751345443657,-519.32,0.00018332,2]
[368750618,1751345443666,-460.0,0.00018332,2]
[368750619,1751345443676,-460.0,0.00018332,2]
[368750620,1751345443685,-460.0,0.00018332,2]
[368750621,1751345443694,-460.0,0.00018332,2]
[368750622,1751345443704,-466.34430824,0.00018332,2]
[368750623,1751345443714,-460.0,0.00018332,2]
[368750624,1751345443723,-460.0,0.00018332,2]
[368750625,1751345443733,-1034.54,0.00018332,2]
[368750626,1751345443743,-460.0,0.00018332,2]
[368750627,1751345443752,-886.45,0.00018332,2]
[368750628,1751345443761,-460.0,0.00018332,2]
[368750629,1751345443771,-460.0,0.00018332,2]
[368750630,1751345443781,-460.0,0.00018332,2]
[368750631,1751345443791,-460.0,0.00018332,2]
[368750632,1751345443800,-336.18048237,0.00018332,2]
[368750633,1751345443810,-460.0,0.00018332,2]
[368750634,1751345443819,-460.0,0.00018333,2]
[368750635,1751345443829,-460.0,0.00018333,2]
[368750636,1751345443839,-460.0,0.00018333,2]
[368750637,1751345443849,-460.0,0.00018333,2]
[368750638,1751345443858,-460.0,0.00018333,2]
[368750639,1751345443868,-543.14498402,0.00018333,2]
[368750640,1751345443878,-460.0,0.00018333,2]
[368750641,1751345443888,-460.0,0.00018333,2]
[368750642,1751345443897,-460.0,0.00018333,2]
[368750643,1751345443906,-460.0,0.00018333,2]
[368750644,1751345443916,-469.90630575,0.00018333,2]
[368750645,1751345443926,-460.0,0.00018333,2]
[368750646,1751345443935,-474.9838208,0.00018333,2]
[368750647,1751345443945,-460.0,0.00018333,2]
[368750648,1751345443955,-461.80608913,0.00018333,2]
[368750649,1751345443964,-460.0,0.00018333,2]
[368750650,1751345444068,-460.0,0.00018333,2]
[368750651,1751345444079,-479.89,0.00018333,2]
[368750652,1751345444090,-463.75090706,0.00018333,2]
[368750653,1751345444100,-460.0,0.00018333,2]
[368750654,1751345444110,-465.62676226,0.00018333,2]
[368750655,1751345444119,-467.28626559,0.00018333,2]
[368750657,1751345444129,-464.93593845,0.00018333,2]
[368750658,1751345444138,-464.80136715,0.00018333,2]
[368750659,1751345444148,-460.0,0.00018333,2]
[368750660,1751345444158,-460.0,0.00018333,2]
[368750661,1751345444168,-460.0,0.00018333,2]
[368750662,1751345444178,-460.0,0.00018333,2]
[368750663,1751345444188,-472.86,0.00018333,2]
[368750664,1751345444198,-460.0,0.00018333,2]
[368750665,1751345444208,-460.0,0.00018333,2]
[368750666,1751345444217,-500.0,0.00018333,2]
[368750667,1751345444228,-1006.22,0.00018333,2]
[368750668,1751345444237,-460.0,0.00018333,2]
[368750669,1751345444247,-460.0,0.00018333,2]
[368750670,1751345444257,-460.0,0.00018333,2]
[368750671,1751345444266,-460.0,0.00018333,2]
[368750672,1751345444276,-460.0,0.00018333,2]
[368750673,1751345444286,-460.0,0.00018333,2]
[368750674,1751345444296,-460.0,0.00018333,2]
[368750675,1751345444306,-242.91654228,0.00018333,2]
[368750676,1751345444316,-460.0,0.00018333,2]
[368750677,1751345444325,-460.0,0.00018333,2]
[368750678,1751345444335,-170.17,0.00018333,2]
[368750679,1751345444345,-460.0,0.00018333,2]
[368750680,1751345444354,-460.0,0.00018333,2]
[368750681,1751345444363,-212.24290908,0.00018333,2]
[368750682,1751345444373,-565.3,0.00018333,2]
[368750683,1751345444383,-460.0,0.00018333,2]
[368750684,1751345444393,-460.0,0.00018333,2]
[368750685,1751345444402,-460.0,0.00018333,2]
[368750686,1751345444411,-460.0,0.00018333,2]
[368750687,1751345444421,-460.0,0.00018333,2]
[368750688,1751345444431,-460.0,0.00018333,2]
[368750689,1751345444441,-460.0,0.00018333,2]
[368750690,1751345444450,-460.0,0.00018333,2]
[368750691,1751345444460,-460.0,0.00018333,2]
[368750692,1751345444470,-460.0,0.00018333,2]
[368750693,1751345444479,-460.0,0.00018333,2]
[368750694,1751345444489,-460.0,0.00018333,2]
[368750696,1751345444501,-460.0,0.00018333,2]
[368750697,1751345444511,-460.0,0.00018333,2]
[368750698,1751345444521,-460.0,0.00018333,2]
[368750699,1751345444530,-460.0,0.00018333,2]
[368750700,1751345444539,-460.0,0.00018333,2]
[368750701,1751345444550,-460.0,0.00018333,2]
[368750702,1751345444559,-460.0,0.00018333,2]
[368750703,1751345444571,-460.0,0.00018333,2]
[368750704,1751345444582,-460.0,0.00018334,2]
[368750705,1751345444592,-460.0,0.00018334,2]
[368750706,1751345444602,-460.0,0.00018334,2]
[368750707,1751345444612,-460.0,0.00018334,2]
[368750708,1751345444624,-460.0,0.00018334,2]
[368750709,1751345444634,-460.0,0.00018334,2]
[368750711,1751345444644,-460.0,0.00018334,2]
[368750712,1751345444654,-460.0,0.00018334,2]
[368750713,1751345444665,-460.0,0.00018334,2]
[368750714,1751345444675,-460.0,0.00018334,2]
[368750715,1751345444685,-460.0,0.00018334,2]
[368750716,1751345444695,-194.68797349,0.00018334,2]
[368750717,1751345444704,-460.0,0.00018334,2]
[368750718,1751345444714,-460.0,0.00018334,2]
[368750719,1751345444724,-615.3,0.00018334,2]
[368750720,1751345444734,-460.0,0.00018334,2]
[368750721,1751345444744,-460.0,0.00018334,2]
[368750722,1751345444753,-460.0,0.00018334,2]
[368750724,1751345444763,-514.29,0.00018334,2]
[368750725,1751345444772,-460.0,0.00018334,2]
[368750726,1751345444782,-460.0,0.00018334,2]
[368750727,1751345444792,-253.2542128,0.00018334,2]
[368750728,1751345444801,-460.0,0.00018431,2]
[368750729,1751345444810,-460.0,0.00018431,2]
[368750730,1751345444820,-500.0,0.00018431,2]
[368750731,1751345444829,-2566.32,0.00018431,2]
[368750732,1751345444839,-613.13,0.00018431,2]
[368750733,1751345444848,-893.64,0.00018431,2]
[368750734,1751345444857,-460.0,0.00018432,2]
[368750735,1751345444869,-460.0,0.00018432,2]
[368750736,1751345444879,-460.0,0.00018432,2]
[368750737,1751345444888,-460.0,0.00018432,2]
[368750738,1751345444897,-434.43940875,0.00018432,2]
[368750739,1751345444907,-460.0,0.00018432,2]
[368750740,1751345444916,-460.0,0.00018432,2]
[368750741,1751345444925,-460.0,0.00018432,2]
[368750742,1751345444935,-460.0,0.00018432,2]
[368750743,1751345444944,-460.0,0.00018432,2]
[368750744,1751345444954,-420.67987744,0.00018432,2]
[368750745,1751345444963,-461.33603647,0.00018432,2]
[368750746,1751345444972,-460.0,0.00018432,2]
[368750747,1751345444985,-460.0,0.00018432,2]
[368750748,1751345445001,-460.0,0.00018432,2]
[368750749,1751345445017,-460.0,0.00018432,2]
[368750750,1751345445033,-460.0,0.00018432,2]
[368750751,1751345445046,-460.0,0.00018432,2]
[368750752,1751345445061,-400.0,0.00018432,2]
[368750753,1751345445076,-460.0,0.00018432,2]
[368750754,1751345445092,-460.0,0.00018432,2]
[368750755,1751345445107,-460.0,0.00018432,2]
[368750756,1751345445121,-460.0,0.00018432,2]
[368750757,1751345445137,-485.12612632,0.00018432,2]
[368750758,1751345445152,-164.08433468,0.00018432,2]
[368750759,1751345445167,-528.88518199,0.00018432,2]
[368750760,1751345445182,-460.0,0.00018432,2]
[368750761,1751345445195,-460.0,0.00018432,2]
[368750762,1751345445211,-460.0,0.00018432,2]
[368750763,1751345445227,-460.0,0.00018432,2]
[368750764,1751345445242,-460.0,0.00018432,2]
[368750765,1751345445255,-460.0,0.00018432,2]
[368750766,1751345445268,-460.0,0.00018432,2]
[368750767,1751345445282,-460.0,0.00018432,2]
[368750768,1751345445298,-460.0,0.00018432,2]
[368750769,1751345445315,-460.0,0.00018432,2]
[368750770,1751345445330,-1133.51,0.00018432,2]
[368750771,1751345445347,-327.78937947,0.00018432,2]
[368750772,1751345445363,-460.0,0.00018432,2]
[368750773,1751345445380,-467.69287127,0.00018432,2]
[368750774,1751345445391,-460.0,0.00018432,2]
[368750775,1751345445403,-460.0,0.00018432,2]
[368750776,1751345445415,-500.0,0.00018432,2]
[368750777,1751345445431,-460.0,0.00018432,2]
[368750778,1751345445447,-460.0,0.00018432,2]
[368750779,1751345445461,-460.0,0.00018432,2]
[368750780,1751345445473,-460.0,0.00018432,2]
[368750781,1751345445486,-1148.85,0.00018432,2]
[368750782,1751345445501,-195.20374186,0.00018432,2]
[368750783,1751345445514,-460.0,0.00018432,2]
[368750784,1751345445526,-1958.59,0.00018432,2]
[368750785,1751345445537,-990.21,0.00018432,2]
[368750786,1751345445552,-460.0,0.00018432,2]
[368750787,1751345445566,-500.0,0.00018433,2]
[368750788,1751345445579,-461.71419324,0.00018434,2]
[368750789,1751345445591,-460.0,0.00018434,2]
[368750790,1751345445604,-460.0,0.00018434,2]
[368750791,1751345445616,-460.0,0.00018434,2]
[368750792,1751345445629,-460.0,0.00018434,2]
[368750793,1751345445641,-460.0,0.00018434,2]
[368750794,1751345445652,-548.88000298,0.00018434,2]
[368750795,1751345445664,-460.0,0.00018436,2]
[368750796,1751345445677,-460.0,0.00018436,2]
[368750797,1751345445690,-602.95636315,0.00018436,2]
[368750798,1751345445703,-460.0,0.00018436,2]
[368750799,1751345445716,-464.13609312,0.00018436,2]
[368750800,1751345445730,-460.0,0.00018436,2]
[368750801,1751345445742,-466.57569299,0.00018436,2]
[368750802,1751345445755,-460.0,0.00018436,2]
[368750803,1751345445767,-460.0,0.00018436,2]
[368750804,1751345445782,-435.51185357,0.00018436,2]
[368750805,1751345445795,-460.0,0.00018436,2]
[368750806,1751345445808,-460.0,0.00018436,2]
[368750807,1751345445821,-460.0,0.00018436,2]
[368750808,1751345445833,-500.0,0.00018497,2]
[368750809,1751345445846,-511.41080749,0.00018497,2]
[368750810,1751345445858,-501.54866242,0.00018497,2]
[368750811,1751345445871,-500.0,0.00018497,2]
[368750812,1751345445883,-182.82418773,0.00018508,2]
[368750813,1751345445897,-500.0,0.00018508,2]
[368750814,1751345445910,-500.0,0.00018508,2]
[368750815,1751345445923,-569.60681306,0.00018541,2]
[368750816,1751345445937,-256.78184664,0.00018578,2]
[368750817,1751345445951,-502.15707281,0.00018578,2]
[368750818,1751345445964,-500.0,0.00018583,2]
[368750819,1751345445976,-179.83814567,0.00018585,2]
[368750820,1751345445988,-395.39139421,0.00018605,2]
[368750821,1751345446001,-460.0,0.00018606,2]
[368750822,1751345446014,-559.72981609,0.00018606,2]
[368750823,1751345446027,-460.0,0.00018606,2]
[368750824,1751345446040,-518.68,0.00018606,2]
[368750825,1751345446052,-1498.38,0.00018606,2]
[368750826,1751345446065,-1143.47,0.00018606,2]
[368750827,1751345446078,-460.0,0.00018606,2]
[368750828,1751345446093,-460.0,0.00018606,2]
[368750829,1751345446106,-460.0,0.00018606,2]
[368750830,1751345446119,-460.0,0.00018606,2]
[368750831,1751345446132,-460.0,0.00018606,2]
[368750832,1751345446144,-460.0,0.00018606,2]
[368750833,1751345446158,-463.8227715,0.00018606,2]
[368750834,1751345446171,-1268.92,0.00018606,2]
[368750835,1751345446184,-1475.83,0.00018606,2]
[368750836,1751345446195,-1680.79,0.00018606,2]
[368750837,1751345446206,-460.0,0.00018606,2]
[368750838,1751345446373,-460.0,0.00018606,2]
[368750839,1751345446393,-460.0,0.00018606,2]
[368750840,1751345446403,-519.32,0.00018606,2]
[368750841,1751345446413,-460.0,0.00018606,2]
[368750842,1751345446423,-460.0,0.00018606,2]
[368750843,1751345446433,-460.0,0.00018606,2]
[368750844,1751345446442,-460.0,0.00018606,2]
[368750845,1751345446452,-460.0,0.00018606,2]
[368750846,1751345446461,-460.0,0.00018606,2]
[368750847,1751345446472,-1034.54,0.00018606,2]
[368750848,1751345446481,-460.0,0.00018606,2]
[368750849,1751345446491,-886.45,0.00018606,2]
[368750850,1751345446505,-460.0,0.00018606,2]
[368750851,1751345446515,-460.0,0.00018606,2]
[368750852,1751345446525,-460.0,0.00018606,2]
[368750853,1751345446535,-460.0,0.00018606,2]
[368750854,1751345446546,-400.20563555,0.00018607,2]
[368750855,1751345446556,-460.0,0.00018607,2]
[368750856,1751345446565,-460.0,0.00018607,2]
[368750857,1751345446577,-595.71,0.00018607,2]
[368750858,1751345446586,-506.20016871,0.00018607,2]
[368750859,1751345446595,-460.0,0.00018607,2]
[368750860,1751345446605,-460.0,0.00018607,2]
[368750861,1751345446615,-460.0,0.00018607,2]
[368750862,1751345446626,-559.95,0.00018607,2]
[368750863,1751345446635,-460.0,0.00018607,2]
[368750864,1751345446645,-460.0,0.00018607,2]
[368750865,1751345446654,-472.86,0.00018607,2]
[368750866,1751345446664,-460.0,0.00018607,2]
[368750867,1751345446674,-460.0,0.00018607,2]
[368750868,1751345446684,-1006.22,0.00018607,2]
[368750869,1751345446693,-460.0,0.00018607,2]
[368750870,1751345446703,-537.8,0.00018607,2]
[368750871,1751345446713,-460.0,0.00018607,2]
[368750872,1751345446723,-562.68,0.00018607,2]
[368750873,1751345446733,-460.0,0.00018607,2]
[368750874,1751345446743,-460.0,0.00018607,2]
[368750875,1751345446753,-460.0,0.00018607,2]
[368750876,1751345446762,-460.0,0.00018607,2]
[368750877,1751345446772,-520.95,0.00018607,2]
[368750878,1751345446783,-460.0,0.00018607,2]
[368750879,1751345446792,-460.0,0.00018607,2]
[368750880,1751345446802,-460.0,0.00018607,2]
[368750881,1751345446811,-460.0,0.00018607,2]
[368750882,1751345446820,-460.0,0.00018607,2]
[368750884,1751345446830,-460.0,0.00018607,2]
[368750885,1751345446839,-460.0,0.00018607,2]
[368750886,1751345446849,-414.91,0.00018607,2]
[368750887,1751345446859,-460.0,0.00018607,2]
[368750888,1751345446868,-460.0,0.00018607,2]
[368750889,1751345446878,-532.14,0.00018607,2]
[368750890,1751345446887,-460.0,0.00018607,2]
[368750891,1751345446897,-441.31,0.00018607,2]
[368750892,1751345446906,-483.53241979,0.00018607,2]
[368750893,1751345446916,-460.0,0.00018607,2]
[368750894,1751345446925,-467.26083022,0.00018607,2]
[368750895,1751345446935,-460.0,0.00018607,2]
[368750896,1751345446944,-460.0,0.00018607,2]
[368750897,1751345446954,-264.4,0.00018607,2]
[368750898,1751345446965,-460.0,0.00018607,2]
[368750899,1751345446974,-460.0,0.00018608,2]
[368750900,1751345446984,-460.0,0.00018608,2]
[368750901,1751345446994,-460.0,0.00018608,2]
[368750902,1751345447003,-460.0,0.00018608,2]
[368750903,1751345447013,-461.39962889,0.00018608,2]
[368750904,1751345447022,-460.0,0.00018608,2]
[368750905,1751345447031,-392.16078526,0.00018608,2]
[368750906,1751345447041,-615.3,0.00018608,2]
[368750907,1751345447050,-460.0,0.00018608,2]
[368750908,1751345447060,-263.28257756,0.00018608,2]
[368750909,1751345447070,-460.0,0.00018608,2]
[368750910,1751345447079,-514.29,0.00018608,2]
[368750911,1751345447088,-460.0,0.00018608,2]
[368750912,1751345447098,-471.71,0.00018608,2]
[368750913,1751345447107,-492.30418994,0.00018673,2]
[368750914,1751345447118,-500.0,0.00018673,2]
[368750915,1751345447128,-500.0,0.00018673,2]
[368750916,1751345447137,-501.006998,0.00018673,2]
[368750917,1751345447147,-460.0,0.00018705,2]
[368750918,1751345447157,-500.0,0.00018705,2]
[368750919,1751345447167,-2566.32,0.00018705,2]
[368750920,1751345447176,-613.13,0.00018705,2]
[368750921,1751345447186,-893.64,0.00018705,2]
[368750922,1751345447195,-460.0,0.00018706,2]
[368750923,1751345447204,-460.0,0.00018706,2]
[368750924,1751345447213,-460.0,0.00018706,2]
[368750925,1751345447223,-461.12423128,0.00018706,2]
[368750926,1751345447232,-460.0,0.00018706,2]
[368750927,1751345447242,-460.0,0.00018706,2]
[368750928,1751345447251,-460.0,0.00018706,2]
[368750929,1751345447261,-460.0,0.00018706,2]
[368750930,1751345447271,-460.0,0.00018706,2]
[368750931,1751345447281,-460.0,0.00018706,2]
[368750932,1751345447291,-460.0,0.00018706,2]
[368750933,1751345447301,-460.0,0.00018706,2]
[368750934,1751345447310,-460.0,0.00018706,2]
[368750935,1751345447320,-460.0,0.00018706,2]
[368750936,1751345447330,-460.0,0.00018706,2]
[368750937,1751345447340,-460.0,0.00018706,2]
[368750938,1751345447350,-460.0,0.00018706,2]
[368750939,1751345447359,-460.0,0.00018706,2]
[368750940,1751345447372,-460.0,0.00018706,2]
[368750941,1751345447381,-1133.51,0.00018706,2]
[368750942,1751345447391,-460.0,0.00018706,2]
[368750943,1751345447400,-561.2896447,0.00018706,2]
[368750944,1751345447409,-500.0,0.00018706,2]
[368750945,1751345447419,-460.0,0.00018706,2]
[368750946,1751345447428,-460.0,0.00018706,2]
[368750947,1751345447438,-460.0,0.00018706,2]
[368750948,1751345447447,-1148.85,0.00018706,2]
[368750949,1751345447457,-244.22232057,0.00018706,2]
[368750950,1751345447467,-1958.59,0.00018706,2]
[368750951,1751345447477,-990.21,0.00018706,2]
[368750952,1751345447486,-532.45462918,0.00018706,2]
[368750953,1751345447496,-460.0,0.00018708,2]
[368750954,1751345447509,-460.0,0.00018708,2]
[368750955,1751345447519,-460.0,0.0001871,2]
[368750956,1751345447529,-460.0,0.0001871,2]
[368750957,1751345447538,-460.0,0.0001871,2]
[368750958,1751345447548,-460.0,0.0001871,2]
[368750959,1751345447558,-460.0,0.0001888,2]
[368750960,1751345447568,-468.43266677,0.0001888,2]
[368750961,1751345447577,-518.68,0.0001888,2]
[368750962,1751345447587,-1498.38,0.0001888,2]
[368750963,1751345447598,-1143.47,0.0001888,2]
[368750964,1751345447608,-460.0,0.0001888,2]
[368750965,1751345447618,-460.0,0.0001888,2]
[368750966,1751345447627,-457.9,0.0001888,2]
[368750967,1751345447637,-500.0,0.0001888,2]
[368750968,1751345447647,-1268.92,0.0001888,2]
[368750969,1751345447657,-1475.83,0.0001888,2]
[368750970,1751345447666,-1680.79,0.0001888,2]
[368750971,1751345447676,-350.58038497,0.0001888,2]
[368750972,1751345447686,-460.0,0.0001888,2]